[Event "Schack-SM 2022: Junior-SM"]
[Site "Fyrishov, Idrottsgatan 2, Uppsala, Sweden"]
[Date "2022.07.06"]
[Round "5.1"]
[White "Nord, Alexander"]
[Black "Soderstrom, Adrian"]
[Result "1/2-1/2"]
[TimeControl "90 minutes for 40 moves + 30 minutes for the rest of the game + 30 seconds per move from move one."]
[WhiteTitle "CM"]
[BlackTitle "CM"]
[WhiteFideId "1738135"]
[BlackFideId "1745786"]
[WhiteElo "2200"]
[BlackElo "2292"]

1. d4 {[%clk 01:30:56]} {[%emt 00:00:03]} d5 {[%clk 01:30:24]} {[%emt
00:00:37]} 2. Nf3 {[%clk 01:31:15]} {[%emt 00:00:10]} Nf6 {[%clk 01:30:49]}
{[%emt 00:00:05]} 3. g3 {[%clk 01:31:37]} {[%emt 00:00:08]} c5 {[%clk
01:30:42]} {[%emt 00:00:38]} 4. Bg2 {[%clk 01:31:50]} {[%emt 00:00:16]} cxd4
{[%clk 01:31:08]} {[%emt 00:00:05]} 5. O-O {[%clk 01:32:11]} {[%emt 00:00:08]}
h6 {[%clk 01:31:30]} {[%emt 00:00:09]} 6. b3 {[%clk 01:25:10]} {[%emt
00:07:30]} h5 {[%clk 01:31:45]} {[%emt 00:00:15]} 7. Bb2 {[%clk 01:20:29]}
{[%emt 00:05:12]} h4 {[%clk 01:31:01]} {[%emt 00:01:13]} 8. Nxd4 {[%clk
01:12:41]} {[%emt 00:08:18]} e5 {[%clk 01:27:02]} {[%emt 00:04:29]} 9. Nf3
{[%clk 01:05:51]} {[%emt 00:07:20]} e4 {[%clk 01:27:29]} {[%emt 00:00:04]} 10.
Nd4 {[%clk 00:56:27]} {[%emt 00:09:54]} Ng4 {[%clk 01:05:54]} {[%emt 00:22:04]}
11. Qc1 {[%clk 00:48:21]} {[%emt 00:08:36]} Bd6 {[%clk 00:59:32]} {[%emt
00:06:52]} 12. Nb5 {[%clk 00:41:58]} {[%emt 00:06:53]} hxg3 {[%clk 00:56:27]}
{[%emt 00:03:34]} 13. hxg3 {[%clk 00:32:40]} {[%emt 00:09:48]} e3 {[%clk
00:51:30]} {[%emt 00:05:28]} 14. f4 {[%clk 00:32:19]} {[%emt 00:00:51]} Bc5
{[%clk 00:44:11]} {[%emt 00:07:48]} 15. Ba3 {[%clk 00:24:03]} {[%emt 00:08:47]}
Qb6 {[%clk 00:39:33]} {[%emt 00:05:08]} 16. Bxc5 {[%clk 00:23:04]} {[%emt
00:01:29]} Qxc5 {[%clk 00:37:00]} {[%emt 00:03:03]} 17. N5c3 {[%clk 00:22:11]}
{[%emt 00:01:23]} d4 {[%clk 00:33:19]} {[%emt 00:04:11]} 18. Nd5 {[%clk
00:22:30]} {[%emt 00:00:10]} Rh5 {[%clk 00:32:04]} {[%emt 00:01:45]} 19. c4
{[%clk 00:16:23]} {[%emt 00:06:38]} d3 {[%clk 00:10:25]} {[%emt 00:22:09]} 20.
Qa3 {[%clk 00:15:57]} {[%emt 00:00:56]} Qxa3 {[%clk 00:05:30]} {[%emt
00:05:26]} 21. Nxa3 {[%clk 00:16:19]} {[%emt 00:00:07]} Nc6 {[%clk 00:03:06]}
{[%emt 00:02:54]} 22. exd3 {[%clk 00:14:09]} {[%emt 00:02:41]} Bf5 {[%clk
00:03:35]} {[%emt 00:00:01]} 23. Rfe1 {[%clk 00:13:04]} {[%emt 00:01:33]} O-O-O
{[%clk 00:03:38]} {[%emt 00:00:28]} 24. Nc2 {[%clk 00:09:39]} {[%emt 00:03:55]}
Bxd3 {[%clk 00:03:55]} {[%emt 00:00:13]} 25. Ncxe3 {[%clk 00:09:53]} {[%emt
00:00:16]} Nxe3 {[%clk 00:03:48]} {[%emt 00:00:38]} 26. Rxe3 {[%clk 00:10:20]}
{[%emt 00:00:02]} Bf5 {[%clk 00:03:59]} {[%emt 00:00:19]} 27. b4 {[%clk
00:09:32]} {[%emt 00:01:18]} Be6 {[%clk 00:03:53]} {[%emt 00:00:36]} 28. a3
{[%clk 00:08:03]} {[%emt 00:01:59]} g5 {[%clk 00:02:08]} {[%emt 00:02:14]} 29.
f5 {[%clk 00:05:52]} {[%emt 00:02:41]} Bxf5 {[%clk 00:01:37]} {[%emt 00:01:01]}
30. b5 {[%clk 00:05:12]} {[%emt 00:01:11]} Nd4 {[%clk 00:01:53]} {[%emt
00:00:13]} 31. Rd1 {[%clk 00:02:58]} {[%emt 00:02:44]} Nc2 {[%clk 00:02:22]}
{[%emt 00:00:02]} 32. Rc3 {[%clk 00:02:16]} {[%emt 00:01:12]} Bh7 {[%clk
00:02:22]} {[%emt 00:00:30]} 33. Bf3 {[%clk 00:02:03]} {[%emt 00:00:42]} Rh6
{[%clk 00:02:23]} {[%emt 00:00:30]} 34. Rd2 {[%clk 00:02:03]} {[%emt 00:00:29]}
Ne1 {[%clk 00:02:44]} {[%emt 00:00:10]} 35. Bg4+ {[%clk 00:02:13]} {[%emt
00:00:20]} f5 {[%clk 00:02:06]} {[%emt 00:01:09]} 36. Ne7+ {[%clk 00:02:10]}
{[%emt 00:00:33]} Kc7 {[%clk 00:02:34]} 37. Rxd8 {[%clk 00:02:21]} {[%emt
00:00:19]} Kxd8 {[%clk 00:02:58]} {[%emt 00:00:06]} 38. Nxf5 {[%clk 00:02:40]}
{[%emt 00:00:10]} Rf6 {[%clk 00:03:17]} {[%emt 00:00:11]} 39. Nd4 {[%clk
00:02:00]} {[%emt 00:01:10]} Nd3 {[%clk 00:03:33]} {[%emt 00:00:15]} 40. c5
{[%clk 00:00:56]} {[%emt 00:01:35]} Nf2 {[%clk 00:01:17]} {[%emt 00:02:44]} 41.
Bf3 {[%clk 00:24:44]} {[%emt 00:06:43]} Ne4 {[%clk 00:28:04]} {[%emt 00:03:42]}
42. Bxe4 {[%clk 00:22:07]} {[%emt 00:03:08]} Bxe4 {[%clk 00:28:31]} {[%emt
00:00:03]} 43. Re3 {[%clk 00:22:24]} {[%emt 00:00:12]} Bd5 {[%clk 00:25:04]}
{[%emt 00:03:57]} 44. Re5 {[%clk 00:19:01]} {[%emt 00:03:53]} Bc4 {[%clk
00:25:28]} {[%emt 00:00:06]} 45. Rxg5 {[%clk 00:17:50]} {[%emt 00:01:42]} Rf1+
{[%clk 00:25:48]} {[%emt 00:00:10]} 46. Kg2 {[%clk 00:18:18]} {[%emt 00:00:02]}
Rd1 {[%clk 00:25:18]} {[%emt 00:00:59]} 47. Rg4 {[%clk 00:17:59]} {[%emt
00:00:49]} Rd3 {[%clk 00:24:11]} {[%emt 00:01:37]} 48. a4 {[%clk 00:16:48]}
{[%emt 00:01:42]} Bd5+ {[%clk 00:23:10]} {[%emt 00:01:32]} 49. Kf2 {[%clk
00:16:53]} {[%emt 00:00:24]} Ke7 {[%clk 00:22:40]} {[%emt 00:00:59]} 50. Rf4
{[%clk 00:16:38]} {[%emt 00:00:46]} Rc3 {[%clk 00:21:43]} {[%emt 00:01:26]} 51.
Nf5+ {[%clk 00:14:37]} {[%emt 00:02:32]} Ke6 {[%clk 00:21:21]} {[%emt
00:00:51]} 52. Ne3 {[%clk 00:13:54]} {[%emt 00:01:13]} Ba2 {[%clk 00:12:55]}
{[%emt 00:08:57]} 53. Re4+ {[%clk 00:12:31]} {[%emt 00:01:53]} Kf6 {[%clk
00:12:27]} {[%emt 00:00:58]} 54. Rd4 {[%clk 00:11:34]} {[%emt 00:01:26]} Be6
{[%clk 00:12:13]} {[%emt 00:00:44]} 55. Rd8 {[%clk 00:07:16]} {[%emt 00:04:49]}
Rxc5 {[%clk 00:09:13]} {[%emt 00:03:30]} 56. Ra8 {[%clk 00:07:08]} {[%emt
00:00:38]} a6 {[%clk 00:09:39]} {[%emt 00:00:03]} 57. bxa6 {[%clk 00:07:15]}
{[%emt 00:00:24]} bxa6 {[%clk 00:10:07]} {[%emt 00:00:02]} 58. Rxa6 {[%clk
00:07:33]} {[%emt 00:00:12]} Ke5 {[%clk 00:10:26]} {[%emt 00:00:10]} 59. Ra7
{[%clk 00:05:42]} {[%emt 00:02:21]} Rc3 {[%clk 00:10:08]} {[%emt 00:00:49]} 60.
Re7 {[%clk 00:05:28]} {[%emt 00:00:44]} Kd6 {[%clk 00:10:02]} {[%emt 00:00:35]}
61. Rh7 {[%clk 00:05:20]} {[%emt 00:00:38]} Ra3 {[%clk 00:09:59]} {[%emt
00:00:34]} 62. Rh4 {[%clk 00:05:41]} {[%emt 00:00:09]} Kc5 {[%clk 00:09:29]}
{[%emt 00:00:59]} 63. Rf4 {[%clk 00:04:52]} {[%emt 00:01:20]} Bb3 {[%clk
00:08:38]} {[%emt 00:01:21]} 64. g4 {[%clk 00:04:20]} {[%emt 00:01:01]} Rxa4
{[%clk 00:08:05]} {[%emt 00:01:05]} 65. Kf3 {[%clk 00:03:50]} {[%emt 00:00:57]}
Rxf4+ {[%clk 00:07:55]} {[%emt 00:00:42]} 66. Kxf4 {[%clk 00:04:18]} {[%emt
00:00:01]} Kd6 {[%clk 00:08:02]} {[%emt 00:00:23]} 67. Nf5+ {[%clk 00:04:40]}
{[%emt 00:00:08]} Kd7 {[%clk 00:08:22]} {[%emt 00:00:11]} 68. Ke5 {[%clk
00:04:46]} {[%emt 00:00:24]} Ke8 {[%clk 00:07:43]} {[%emt 00:01:09]} 69. Kf6
{[%clk 00:05:09]} {[%emt 00:00:07]} Kf8 {[%clk 00:07:29]} {[%emt 00:00:43]} 70.
Nd4 {[%clk 00:05:20]} {[%emt 00:00:19]} Ba2 {[%clk 00:07:43]} {[%emt 00:00:16]}
71. g5 {[%clk 00:05:27]} {[%emt 00:00:23]} Bb1 {[%clk 00:08:05]} {[%emt
00:00:08]} 72. Nf5 {[%clk 00:05:38]} {[%emt 00:00:20]} Bxf5 {[%clk 00:08:24]}
{[%emt 00:00:11]} 73. Kxf5 {[%clk 00:06:06]} {[%emt 00:00:02]} Kf7 {[%clk
00:08:48]} {[%emt 00:00:06]} 74. g6+ {[%clk 00:06:33]} {[%emt 00:00:03]} Kg7
{[%clk 00:09:15]} {[%emt 00:00:03]} 75. Kg5 {[%clk 00:06:58]} {[%emt 00:00:05]}
Kg8 {[%clk 00:09:43]} 76. Kf6 {[%clk 00:07:22]} {[%emt 00:00:07]} Kf8 {[%clk
00:10:12]} 77. g7+ {[%clk 00:07:46]} {[%emt 00:00:06]} Kg8 {[%clk 00:10:38]}
{[%emt 00:00:04]} 78. Kg6 {[%clk 00:08:15]} {[%emt 00:00:01]} 1/2-1/2

[Event "Schack-SM 2022: Junior-SM"]
[Site "Fyrishov, Idrottsgatan 2, Uppsala, Sweden"]
[Date "2022.07.06"]
[Round "5.2"]
[White "Seo, Jung Hyun"]
[Black "Olsson, William"]
[Result "1/2-1/2"]
[TimeControl "90 minutes for 40 moves + 30 minutes for the rest of the game + 30 seconds per move from move one."]
[BlackTitle "FM"]
[WhiteFideId "1735667"]
[BlackFideId "1741721"]
[WhiteElo "2102"]
[BlackElo "2284"]

1. e4 {[%clk 01:30:51]} {[%emt 00:00:09]} c5 {[%clk 01:30:57]} {[%emt
00:00:03]} 2. Nf3 {[%clk 01:31:18]} {[%emt 00:00:03]} d6 {[%clk 01:31:24]}
{[%emt 00:00:03]} 3. d4 {[%clk 01:31:46]} {[%emt 00:00:03]} cxd4 {[%clk
01:31:50]} {[%emt 00:00:04]} 4. Nxd4 {[%clk 01:32:14]} Nf6 {[%clk 01:32:14]}
{[%emt 00:00:06]} 5. Nc3 {[%clk 01:32:39]} {[%emt 00:00:05]} g6 {[%clk
01:32:42]} {[%emt 00:00:03]} 6. Be3 {[%clk 01:32:58]} {[%emt 00:00:10]} Bg7
{[%clk 01:33:08]} {[%emt 00:00:04]} 7. f3 {[%clk 01:33:26]} {[%emt 00:00:02]}
O-O {[%clk 01:33:33]} {[%emt 00:00:05]} 8. Qd2 {[%clk 01:33:55]} {[%emt
00:00:02]} Nc6 {[%clk 01:33:58]} {[%emt 00:00:05]} 9. O-O-O {[%clk 01:34:20]}
{[%emt 00:00:04]} d5 {[%clk 01:34:21]} {[%emt 00:00:07]} 10. Qe1 {[%clk
01:34:45]} {[%emt 00:00:06]} e5 {[%clk 01:34:47]} {[%emt 00:00:03]} 11. Nxc6
{[%clk 01:35:11]} {[%emt 00:00:04]} bxc6 {[%clk 01:35:12]} {[%emt 00:00:05]} 12.
exd5 {[%clk 01:35:38]} {[%emt 00:00:03]} Nxd5 {[%clk 01:35:37]} {[%emt
00:00:05]} 13. Bc4 {[%clk 01:36:02]} {[%emt 00:00:06]} Be6 {[%clk 01:36:03]}
{[%emt 00:00:04]} 14. Ne4 {[%clk 01:36:20]} {[%emt 00:00:12]} Qc7 {[%clk
01:36:14]} {[%emt 00:00:19]} 15. Bc5 {[%clk 01:36:32]} {[%emt 00:00:18]} Rfd8
{[%clk 01:36:33]} {[%emt 00:00:10]} 16. Qh4 {[%clk 01:36:36]} {[%emt 00:00:27]}
h6 {[%clk 01:31:22]} {[%emt 00:05:41]} 17. g4 {[%clk 01:35:38]} {[%emt
00:01:28]} Nf4 {[%clk 01:25:09]} {[%emt 00:06:43]} 18. Bxe6 {[%clk 01:26:25]}
{[%emt 00:09:43]} Nxe6 {[%clk 01:25:30]} {[%emt 00:00:09]} 19. Bd6 {[%clk
01:26:43]} {[%emt 00:00:12]} Qa5 {[%clk 01:23:20]} {[%emt 00:02:40]} 20. Kb1
{[%clk 01:21:55]} {[%emt 00:05:19]} Nd4 {[%clk 01:17:50]} {[%emt 00:05:59]} 21.
c3 {[%clk 01:13:00]} {[%emt 00:09:25]} Nb5 {[%clk 01:12:45]} {[%emt 00:05:36]}
22. Bb4 {[%clk 01:05:45]} {[%emt 00:07:45]} Qb6 {[%clk 00:59:36]} {[%emt
00:13:38]} 23. a4 {[%clk 00:52:27]} {[%emt 00:13:48]} Rxd1+ {[%clk 00:57:04]}
{[%emt 00:03:02]} 24. Rxd1 {[%clk 00:52:54]} {[%emt 00:00:02]} Nd4 {[%clk
00:57:12]} {[%emt 00:00:23]} 25. Qe7 {[%clk 00:34:28]} {[%emt 00:18:56]} a5
{[%clk 00:45:44]} {[%emt 00:11:58]} 26. Ba3 {[%emt 00:20:07]} Qb3 {[%clk
00:40:11]} 27. Rd2 {[%clk 00:20:01]} {[%emt 00:01:23]} Bf8 {[%clk 00:31:54]}
{[%emt 00:08:47]} 28. Nf6+ {[%clk 00:18:29]} {[%emt 00:02:02]} Kh8 {[%clk
00:31:02]} {[%emt 00:01:22]} 29. Qxf8+ {[%clk 00:16:32]} {[%emt 00:02:27]} Rxf8
{[%clk 00:31:27]} {[%emt 00:00:05]} 30. Bxf8 {[%clk 00:17:01]} Qe6 {[%clk
00:31:14]} {[%emt 00:00:41]} 31. cxd4 {[%clk 00:12:24]} {[%emt 00:05:09]} Qxf6
{[%clk 00:31:34]} {[%emt 00:00:09]} 32. dxe5 {[%clk 00:12:16]} {[%emt
00:00:38]} Qxe5 {[%clk 00:31:26]} {[%emt 00:00:38]} 33. Bxh6 {[%clk 00:11:56]}
{[%emt 00:00:51]} Kh7 {[%clk 00:30:55]} {[%emt 00:01:00]} 34. g5 {[%clk
00:09:11]} {[%emt 00:03:15]} Qf5+ {[%clk 00:27:37]} {[%emt 00:03:49]} 35. Ka2
{[%clk 00:07:19]} {[%emt 00:02:20]} Qe6+ {[%clk 00:24:49]} {[%emt 00:03:20]} 36.
b3 {[%clk 00:07:09]} {[%emt 00:00:41]} f6 {[%clk 00:24:19]} {[%emt 00:00:59]}
37. f4 {[%clk 00:06:09]} {[%emt 00:01:30]} Kg8 {[%clk 00:24:23]} {[%emt
00:00:25]} 38. Rd8+ {[%clk 00:06:29]} {[%emt 00:00:11]} Kh7 {[%clk 00:24:07]}
{[%emt 00:00:46]} 39. gxf6 {[%clk 00:05:48]} {[%emt 00:01:11]} Qxf6 {[%clk
00:23:50]} {[%emt 00:00:47]} 40. Bg5 {[%clk 00:06:11]} {[%emt 00:00:07]} Qc3
{[%clk 00:23:24]} {[%emt 00:00:55]} 41. Rd7+ {[%clk 00:06:20]} {[%emt
00:00:21]} Kg8 {[%clk 00:23:44]} {[%emt 00:00:10]} 42. Re7 {[%clk 00:06:48]}
{[%emt 00:00:02]} Qc2+ {[%clk 00:23:27]} {[%emt 00:00:46]} 43. Ka3 {[%clk
00:01:01]} {[%emt 00:06:18]} Qb1 {[%clk 00:23:41]} {[%emt 00:00:16]} 44. Re2
{[%clk 00:29:09]} {[%emt 00:02:23]} Kf7 {[%clk 00:53:32]} {[%emt 00:00:39]} 45.
Re7+ {[%clk 00:29:33]} {[%emt 00:00:05]} Kf8 {[%clk 00:53:58]} {[%emt
00:00:04]} 46. Re2 {[%clk 00:29:58]} {[%emt 00:00:05]} Qa1+ {[%clk 00:53:54]}
{[%emt 00:00:33]} 47. Ra2 {[%clk 00:30:24]} {[%emt 00:00:05]} Qc1+ {[%clk
00:54:02]} {[%emt 00:00:21]} 48. Rb2 {[%clk 00:30:51]} {[%emt 00:00:04]} Ke8
{[%clk 00:54:05]} {[%emt 00:00:26]} 49. h4 {[%clk 00:30:04]} {[%emt 00:01:18]}
Kd7 {[%clk 00:54:13]} {[%emt 00:00:22]} 50. Ka2 {[%clk 00:29:24]} {[%emt
00:01:10]} Qe1 {[%clk 00:53:43]} {[%emt 00:00:59]} 51. Rc2 {[%clk 00:28:19]}
{[%emt 00:01:34]} Kd6 {[%clk 00:52:48]} {[%emt 00:01:26]} 52. Rc4 {[%clk
00:28:15]} {[%emt 00:00:34]} Kd5 {[%clk 00:52:36]} {[%emt 00:00:43]} 53. Kb2
{[%clk 00:28:20]} {[%emt 00:00:25]} Qf1 {[%clk 00:51:30]} {[%emt 00:01:35]} 54.
Ka2 {[%clk 00:26:11]} {[%emt 00:02:40]} Qe2+ {[%clk 00:51:33]} {[%emt
00:00:26]} 55. Kb1 {[%clk 00:25:51]} {[%emt 00:00:48]} Qg2 {[%clk 00:51:33]}
{[%emt 00:00:31]} 56. Ka1 {[%clk 00:25:16]} {[%emt 00:01:08]} Qh1+ {[%clk
00:50:15]} {[%emt 00:01:59]} 1/2-1/2

[Event "Schack-SM 2022: Junior-SM"]
[Site "Fyrishov, Idrottsgatan 2, Uppsala, Sweden"]
[Date "2022.07.06"]
[Round "5.3"]
[White "Wernberg, Hugo"]
[Black "Grahn, Vidar"]
[Result "1-0"]
[TimeControl "90 minutes for 40 moves + 30 minutes for the rest of the game + 30 seconds per move from move one."]
[WhiteTitle "FM"]
[WhiteFideId "1737511"]
[BlackFideId "1744780"]
[WhiteElo "2316"]
[BlackElo "2003"]

1. d4 {[%clk 01:30:55]} {[%emt 00:00:04]} d5 {[%clk 01:30:57]} {[%emt
00:00:03]} 2. c4 {[%clk 01:31:16]} {[%emt 00:00:10]} c6 {[%clk 01:31:24]}
{[%emt 00:00:03]} 3. Nf3 {[%clk 01:31:40]} {[%emt 00:00:06]} Nf6 {[%clk
01:31:48]} {[%emt 00:00:06]} 4. Nc3 {[%clk 01:31:50]} {[%emt 00:00:21]} e6
{[%clk 01:32:13]} {[%emt 00:00:05]} 5. e3 {[%clk 01:32:08]} {[%emt 00:00:12]}
Nbd7 {[%clk 01:32:37]} {[%emt 00:00:05]} 6. Be2 {[%clk 01:32:24]} {[%emt
00:00:14]} dxc4 {[%clk 01:33:00]} {[%emt 00:00:08]} 7. a4 {[%clk 01:32:43]}
{[%emt 00:00:10]} Bb4 {[%clk 01:31:53]} {[%emt 00:01:36]} 8. Bxc4 {[%clk
01:23:13]} {[%emt 00:10:01]} O-O {[%clk 01:31:05]} {[%emt 00:01:19]} 9. O-O
{[%clk 01:21:52]} {[%emt 00:01:51]} c5 {[%clk 01:28:29]} {[%emt 00:03:06]} 10.
Na2 {[%clk 01:15:03]} {[%emt 00:07:18]} Ba5 {[%clk 01:12:54]} {[%emt 00:16:05]}
11. dxc5 {[%clk 01:11:49]} {[%emt 00:03:44]} Bc7 {[%clk 01:12:48]} {[%emt
00:00:36]} 12. b4 {[%clk 01:10:16]} {[%emt 00:02:04]} a5 {[%clk 01:11:10]}
{[%emt 00:02:08]} 13. Ba3 {[%clk 01:04:55]} {[%emt 00:05:51]} Qe7 {[%clk
01:07:26]} {[%emt 00:04:13]} 14. Rc1 {[%clk 00:51:03]} {[%emt 00:14:22]} Rd8
{[%clk 00:56:56]} {[%emt 00:11:00]} 15. Qe2 {[%clk 00:31:05]} {[%emt 00:20:28]}
axb4 {[%clk 00:54:58]} {[%emt 00:02:28]} 16. Bxb4 {[%clk 00:30:37]} {[%emt
00:00:59]} Ba5 {[%clk 00:54:20]} {[%emt 00:01:07]} 17. Ba3 {[%clk 00:28:36]}
{[%emt 00:02:31]} b6 {[%clk 00:52:56]} {[%emt 00:01:55]} 18. Nd4 {[%clk
00:25:01]} {[%emt 00:04:05]} Re8 {[%clk 00:41:29]} {[%emt 00:11:56]} 19. Nc6
{[%clk 00:14:11]} {[%emt 00:11:20]} Qf8 {[%clk 00:41:33]} {[%emt 00:00:26]} 20.
Bb5 {[%clk 00:12:58]} {[%emt 00:01:43]} bxc5 {[%clk 00:34:58]} {[%emt
00:07:05]} 21. Nxa5 {[%clk 00:13:07]} {[%emt 00:00:22]} Rxa5 {[%clk 00:35:03]}
{[%emt 00:00:25]} 22. Rfd1 {[%clk 00:12:40]} {[%emt 00:00:56]} Rd8 {[%clk
00:29:13]} {[%emt 00:06:20]} 23. Qd2 {[%clk 00:09:00]} {[%emt 00:04:10]} Ra8
{[%clk 00:25:18]} {[%emt 00:04:26]} 24. Bxc5 {[%clk 00:07:41]} {[%emt
00:01:49]} Ne4 {[%clk 00:25:09]} {[%emt 00:00:39]} 25. Bxf8 {[%clk 00:06:28]}
{[%emt 00:01:43]} Nxd2 {[%clk 00:24:52]} {[%emt 00:00:46]} 26. Rxd2 {[%clk
00:05:43]} {[%emt 00:01:15]} Kxf8 {[%clk 00:25:16]} {[%emt 00:00:06]} 27. Nb4
{[%clk 00:05:41]} {[%emt 00:00:32]} e5 {[%clk 00:19:04]} {[%emt 00:06:41]} 28.
Rcd1 {[%clk 00:04:57]} {[%emt 00:01:15]} f6 {[%clk 00:19:10]} {[%emt 00:00:25]}
29. h3 {[%clk 00:04:29]} {[%emt 00:00:57]} 1-0

[Event "Schack-SM 2022: Junior-SM"]
[Site "Fyrishov, Idrottsgatan 2, Uppsala, Sweden"]
[Date "2022.07.06"]
[Round "5.4"]
[White "Rasti, Arvin"]
[Black "Ostlund, Joar"]
[Result "0-1"]
[TimeControl "90 minutes for 40 moves + 30 minutes for the rest of the game + 30 seconds per move from move one."]
[BlackTitle "CM"]
[WhiteFideId "1741160"]
[BlackFideId "1735020"]
[WhiteElo "2136"]
[BlackElo "2222"]

1. e4 {[%clk 01:30:56]} {[%emt 00:00:03]} e5 {[%clk 01:30:51]} {[%emt
00:00:09]} 2. Nc3 {[%clk 01:31:05]} {[%emt 00:00:22]} Nf6 {[%clk 01:31:04]}
{[%emt 00:00:17]} 3. g3 {[%clk 01:31:13]} {[%emt 00:00:23]} Bc5 {[%clk
01:26:47]} {[%emt 00:04:47]} 4. Bg2 {[%clk 01:31:23]} {[%emt 00:00:20]} O-O
{[%clk 01:26:35]} {[%emt 00:00:42]} 5. d3 {[%clk 01:30:16]} {[%emt 00:01:36]}
Nc6 {[%clk 01:21:54]} {[%emt 00:05:12]} 6. Nge2 {[%clk 01:30:16]} {[%emt
00:00:29]} a5 {[%clk 01:20:39]} {[%emt 00:01:46]} 7. O-O {[%clk 01:25:35]}
{[%emt 00:05:10]} d6 {[%clk 01:19:02]} {[%emt 00:02:07]} 8. h3 {[%clk
01:23:42]} {[%emt 00:02:23]} a4 {[%clk 01:14:14]} {[%emt 00:05:19]} 9. Kh2
{[%clk 01:21:17]} {[%emt 00:02:53]} a3 {[%clk 01:08:43]} {[%emt 00:06:03]} 10.
bxa3 {[%clk 01:16:10]} {[%emt 00:05:36]} Bxa3 {[%clk 01:05:10]} {[%emt
00:04:04]} 11. Bxa3 {[%clk 01:11:22]} {[%emt 00:05:17]} Rxa3 {[%clk 01:05:34]}
{[%emt 00:00:07]} 12. f4 {[%clk 01:07:14]} {[%emt 00:04:38]} Re8 {[%clk
00:56:57]} {[%emt 00:09:07]} 13. Qc1 {[%clk 01:01:40]} {[%emt 00:06:03]} Ra5
{[%clk 00:43:20]} {[%emt 00:14:07]} 14. Qd2 {[%clk 00:52:38]} {[%emt 00:09:32]}
b6 {[%clk 00:40:58]} {[%emt 00:02:53]} 15. Nd5 {[%clk 00:38:41]} {[%emt
00:14:27]} Nxd5 {[%clk 00:34:04]} {[%emt 00:07:23]} 16. exd5 {[%clk 00:39:09]}
{[%emt 00:00:02]} Nd4 {[%clk 00:32:06]} {[%emt 00:02:28]} 17. Nc3 {[%clk
00:37:47]} {[%emt 00:01:52]} f6 {[%clk 00:27:09]} {[%emt 00:05:28]} 18. Ne4
{[%clk 00:34:30]} {[%emt 00:03:46]} Nf5 {[%clk 00:17:40]} {[%emt 00:09:59]} 19.
fxe5 {[%clk 00:30:17]} {[%emt 00:04:43]} dxe5 {[%clk 00:16:47]} {[%emt
00:01:23]} 20. c4 {[%clk 00:29:59]} {[%emt 00:00:48]} Nd6 {[%clk 00:15:41]}
{[%emt 00:01:36]} 21. Nc3 {[%clk 00:28:48]} {[%emt 00:01:41]} Bf5 {[%clk
00:14:43]} {[%emt 00:01:28]} 22. Rae1 {[%clk 00:28:03]} {[%emt 00:01:15]} Qd7
{[%clk 00:14:27]} {[%emt 00:00:47]} 23. Rf2 {[%clk 00:26:47]} {[%emt 00:01:46]}
Bg6 {[%clk 00:14:12]} {[%emt 00:00:44]} 24. g4 {[%clk 00:21:35]} {[%emt
00:05:42]} h6 {[%clk 00:13:57]} {[%emt 00:00:46]} 25. Rfe2 {[%clk 00:21:09]}
{[%emt 00:00:56]} Rea8 {[%clk 00:13:48]} {[%emt 00:00:39]} 26. Bf3 {[%clk
00:19:47]} {[%emt 00:01:52]} Rf8 {[%clk 00:11:45]} {[%emt 00:02:32]} 27. h4
{[%clk 00:17:53]} {[%emt 00:02:24]} Ra3 {[%clk 00:11:44]} {[%emt 00:00:31]} 28.
Rg1 {[%clk 00:17:09]} {[%emt 00:01:14]} Qd8 {[%clk 00:11:26]} {[%emt 00:00:49]}
29. Kh3 {[%clk 00:15:59]} {[%emt 00:01:39]} Qa8 {[%clk 00:11:12]} {[%emt
00:00:44]} 30. Re3 {[%clk 00:13:13]} {[%emt 00:03:16]} Qa5 {[%clk 00:10:57]}
{[%emt 00:00:45]} 31. Rc1 {[%clk 00:13:16]} {[%emt 00:00:28]} Ra8 {[%clk
00:10:17]} {[%emt 00:01:10]} 32. Bd1 {[%clk 00:11:18]} {[%emt 00:02:27]} e4
{[%clk 00:08:51]} {[%emt 00:01:57]} 33. Be2 {[%clk 00:11:19]} {[%emt 00:00:29]}
exd3 {[%clk 00:05:26]} {[%emt 00:03:54]} 34. Bxd3 {[%clk 00:11:44]} {[%emt
00:00:06]} Bxd3 {[%clk 00:05:43]} {[%emt 00:00:13]} 35. Rxd3 {[%clk 00:11:49]}
{[%emt 00:00:24]} Nxc4 {[%clk 00:05:25]} {[%emt 00:00:49]} 0-1